[Event "MČR juniorů a juniorek v rapid šachu 2024"]
[Site "Hotel Fit Fun, Harrachov, Czech Republic"]
[Date "2024.09.21"]
[Round "2.15"]
[White "Zadrapova Amalie"]
[Black "Jun Robert"]
[Result "0-1"]
[TimeControl "20+5"]
[WhiteFideId "23710276"]
[BlackFideId "23709510"]
[WhiteElo "1891"]
[BlackElo "1681"]

1. e4 {[%clk 00:20:08]} {[%emt 00:00:02]} c5 {[%clk 00:20:09]} {[%emt
00:00:01]} 2. Nf3 {[%clk 00:20:09]} {[%emt 00:00:03]} d6 {[%clk 00:20:13]}
{[%emt 00:00:01]} 3. d4 {[%clk 00:20:13]} {[%emt 00:00:02]} cxd4 {[%clk
00:20:16]} {[%emt 00:00:01]} 4. Nxd4 {[%clk 00:20:16]} {[%emt 00:00:03]} e6
{[%clk 00:20:21]} 5. Nc3 {[%clk 00:20:14]} {[%emt 00:00:07]} Nf6 {[%clk
00:20:24]} {[%emt 00:00:02]} 6. Be3 {[%clk 00:20:09]} {[%emt 00:00:10]} a6
{[%clk 00:20:27]} {[%emt 00:00:02]} 7. Be2 {[%clk 00:20:08]} {[%emt 00:00:06]}
b5 {[%clk 00:20:31]} {[%emt 00:00:01]} 8. a3 {[%clk 00:16:33]} {[%emt
00:03:40]} Bb7 {[%clk 00:20:21]} {[%emt 00:00:14]} 9. Bf3 {[%clk 00:15:52]}
{[%emt 00:00:45]} Nbd7 {[%clk 00:20:19]} {[%emt 00:00:08]} 10. Nde2 {[%clk
00:12:41]} {[%emt 00:03:16]} Ne5 {[%clk 00:20:12]} {[%emt 00:00:12]} 11. Ng3
{[%clk 00:12:16]} {[%emt 00:00:30]} Be7 {[%clk 00:19:49]} {[%emt 00:00:28]} 12.
Be2 {[%clk 00:11:51]} {[%emt 00:00:31]} Rc8 {[%clk 00:19:29]} {[%emt 00:00:24]}
13. O-O {[%clk 00:11:50]} {[%emt 00:00:06]} Nc4 {[%clk 00:18:49]} {[%emt
00:00:45]} 14. Bxc4 {[%clk 00:11:50]} {[%emt 00:00:05]} Rxc4 {[%clk 00:18:52]}
{[%emt 00:00:02]} 15. f3 {[%clk 00:11:31]} {[%emt 00:00:24]} d5 {[%clk
00:18:05]} {[%emt 00:00:52]} 16. exd5 {[%clk 00:10:57]} {[%emt 00:00:39]} Nxd5
{[%clk 00:17:59]} {[%emt 00:00:12]} 17. Nxd5 {[%clk 00:10:57]} {[%emt
00:00:04]} Bxd5 {[%clk 00:18:02]} {[%emt 00:00:02]} 18. Nh5 {[%clk 00:09:03]}
{[%emt 00:01:59]} O-O {[%clk 00:18:01]} {[%emt 00:00:05]} 19. Nf4 {[%clk
00:08:29]} {[%emt 00:00:40]} Bb7 {[%clk 00:17:46]} {[%emt 00:00:20]} 20. Nd3
{[%clk 00:07:35]} {[%emt 00:01:00]} Qc7 {[%clk 00:16:42]} {[%emt 00:01:08]} 21.
c3 {[%clk 00:07:21]} {[%emt 00:00:18]} Rd8 {[%clk 00:16:28]} {[%emt 00:00:20]}
22. Qe2 {[%clk 00:07:00]} {[%emt 00:00:26]} Bd5 {[%clk 00:14:17]} {[%emt
00:02:16]} 23. Bd4 {[%clk 00:06:16]} {[%emt 00:00:50]} f6 {[%clk 00:13:03]}
{[%emt 00:01:18]} 24. f4 {[%clk 00:05:19]} {[%emt 00:01:01]} Rc6 {[%clk
00:12:32]} {[%emt 00:00:36]} 25. Rad1 {[%clk 00:02:53]} {[%emt 00:02:31]} Bc4
{[%clk 00:11:57]} {[%emt 00:00:40]} 26. Rf3 {[%clk 00:02:15]} {[%emt 00:00:44]}
Bc5 {[%clk 00:11:11]} {[%emt 00:00:51]} 27. Bxc5 {[%clk 00:00:56]} {[%emt
00:01:24]} Rxc5 {[%clk 00:11:06]} {[%emt 00:00:10]} 28. Re3 {[%clk 00:00:16]}
{[%emt 00:00:45]} e5 {[%clk 00:06:58]} {[%emt 00:04:13]} 29. fxe5 {[%clk
00:00:14]} {[%emt 00:00:07]} fxe5 {[%clk 00:06:48]} {[%emt 00:00:15]} 30. b3
{[%clk 00:00:06]} {[%emt 00:00:13]} Bxb3 {[%clk 00:06:09]} {[%emt 00:00:44]} 31.
Rf1 {[%clk 00:00:08]} {[%emt 00:00:03]} Rxc3 {[%clk 00:05:47]} {[%emt
00:00:27]} 32. Nxe5 {[%clk 00:00:11]} {[%emt 00:00:02]} Qc5 {[%clk 00:05:06]}
{[%emt 00:00:45]} 33. Ng4 {[%clk 00:00:13]} {[%emt 00:00:03]} Bc4 {[%clk
00:03:32]} {[%emt 00:01:39]} 34. Qf3 {[%clk 00:00:07]} {[%emt 00:00:10]} Rxe3
{[%clk 00:02:21]} {[%emt 00:01:17]} 35. Nxe3 {[%emt 00:00:07]} 0-1



[ePGN "0.1;DGT LiveChess/2.2.6"]

[Event "MČR juniorů a juniorek v rapid šachu 2024"]
[Site "Hotel Fit Fun, Harrachov, Czech Republic"]
[Date "2024.09.21"]
[Round "2.16"]
[White "Lebeda Frantisek Jiri"]
[Black "Markina Sofiia"]
[Result "0-1"]
[TimeControl "20+5"]
[BlackFideId "23744014"]
[WhiteElo "1000"]
[BlackElo "1885"]

1. d4 {[%clk 00:20:07]} {[%emt 00:00:03]} d5 {[%clk 00:20:10]} {[%emt
00:00:01]} 2. c4 {[%clk 00:20:10]} {[%emt 00:00:03]} c6 {[%clk 00:20:13]}
{[%emt 00:00:02]} 3. Nf3 {[%clk 00:20:12]} {[%emt 00:00:03]} Nf6 {[%clk
00:20:16]} {[%emt 00:00:01]} 4. Nc3 {[%clk 00:20:11]} {[%emt 00:00:06]} dxc4
{[%clk 00:20:19]} {[%emt 00:00:02]} 5. Bg5 {[%clk 00:19:49]} {[%emt 00:00:27]}
h6 {[%clk 00:19:30]} {[%emt 00:00:54]} 6. Bxf6 {[%clk 00:19:45]} {[%emt
00:00:09]} exf6 {[%clk 00:19:34]} {[%emt 00:00:02]} 7. h3 {[%clk 00:19:32]}
{[%emt 00:00:17]} Be6 {[%clk 00:19:32]} {[%emt 00:00:07]} 8. e4 {[%clk
00:19:31]} {[%emt 00:00:05]} Bb4 {[%clk 00:18:54]} {[%emt 00:00:44]} 9. Qc2
{[%clk 00:18:49]} {[%emt 00:00:47]} O-O {[%emt 00:00:25]} 10. a3 {[%clk
00:18:49]} {[%emt 00:00:04]} Bxc3+ {[%clk 00:18:28]} {[%emt 00:00:12]} 11. Qxc3
{[%clk 00:18:51]} {[%emt 00:00:02]} b5 {[%clk 00:18:31]} {[%emt 00:00:02]} 12.
Be2 {[%clk 00:18:42]} {[%emt 00:00:14]} Nd7 {[%clk 00:18:24]} {[%emt 00:00:13]}
13. O-O {[%clk 00:18:19]} {[%emt 00:00:28]} Nb6 {[%clk 00:18:22]} {[%emt
00:00:08]} 14. Bd1 {[%clk 00:17:20]} {[%emt 00:01:02]} Qc7 {[%clk 00:18:09]}
{[%emt 00:00:19]} 15. Bc2 {[%clk 00:16:40]} {[%emt 00:00:45]} Rfd8 {[%clk
00:17:15]} {[%emt 00:01:00]} 16. Rad1 {[%clk 00:16:25]} {[%emt 00:00:19]} Rd7
{[%clk 00:16:07]} {[%emt 00:01:11]} 17. Rd2 {[%clk 00:15:41]} {[%emt 00:00:52]}
Rad8 {[%clk 00:15:16]} {[%emt 00:00:56]} 18. Rfd1 {[%clk 00:15:14]} {[%emt
00:00:32]} Qf4 {[%clk 00:14:40]} {[%emt 00:00:41]} 19. g3 {[%clk 00:14:14]}
{[%emt 00:01:05]} Qc7 {[%clk 00:14:25]} {[%emt 00:00:20]} 20. Kg2 {[%clk
00:13:40]} {[%emt 00:00:39]} Qc8 {[%clk 00:13:54]} {[%emt 00:00:36]} 21. Rh1
{[%clk 00:13:09]} {[%emt 00:00:36]} Re7 {[%clk 00:13:18]} {[%emt 00:00:42]} 22.
Nh4 {[%clk 00:11:48]} {[%emt 00:01:25]} g5 {[%clk 00:10:41]} {[%emt 00:02:43]}
23. Nf3 {[%clk 00:09:48]} {[%emt 00:02:04]} f5 {[%clk 00:10:29]} {[%emt
00:00:18]} 24. e5 {[%clk 00:09:11]} {[%emt 00:00:42]} Nd5 {[%clk 00:10:04]}
{[%emt 00:00:30]} 25. Qa5 {[%clk 00:08:39]} {[%emt 00:00:37]} f4 {[%clk
00:09:59]} {[%emt 00:00:10]} 26. g4 {[%clk 00:07:59]} {[%emt 00:00:44]} Bxg4
{[%clk 00:09:59]} {[%emt 00:00:06]} 27. hxg4 {[%clk 00:07:22]} {[%emt
00:00:43]} Qxg4+ {[%clk 00:10:02]} {[%emt 00:00:01]} 28. Kf1 {[%clk 00:07:23]}
{[%emt 00:00:04]} Qxf3 {[%clk 00:10:03]} {[%emt 00:00:04]} 29. Qxd8+ {[%clk
00:07:08]} {[%emt 00:00:19]} Kg7 {[%clk 00:10:00]} {[%emt 00:00:08]} 30. Rxh6
{[%clk 00:05:39]} {[%emt 00:01:36]} Ne3+ {[%clk 00:09:57]} {[%emt 00:00:07]} 31.
Ke1 {[%clk 00:05:36]} {[%emt 00:00:07]} Nxc2+ {[%clk 00:10:00]} {[%emt
00:00:03]} 32. Rxc2 {[%clk 00:05:34]} {[%emt 00:00:07]} Kxh6 {[%clk 00:09:35]}
{[%emt 00:00:31]} 33. Qxe7 {[%clk 00:05:15]} {[%emt 00:00:23]} Qe4+ {[%clk
00:09:37]} {[%emt 00:00:04]} 34. Kd2 {[%clk 00:04:50]} {[%emt 00:00:27]} Qd3+
{[%clk 00:09:37]} {[%emt 00:00:07]} 35. Kc1 {[%clk 00:04:48]} {[%emt 00:00:06]}
Qf1+ {[%clk 00:09:37]} {[%emt 00:00:06]} 36. Kd2 {[%clk 00:04:47]} {[%emt
00:00:04]} Qxf2+ {[%clk 00:09:30]} {[%emt 00:00:14]} 37. Kc3 {[%clk 00:04:35]}
{[%emt 00:00:17]} Qe3+ {[%clk 00:09:33]} {[%emt 00:00:02]} 38. Kb4 {[%clk
00:04:23]} {[%emt 00:00:17]} Qb3+ {[%clk 00:09:36]} {[%emt 00:00:02]} 39. Kc5
{[%clk 00:04:27]} {[%emt 00:00:02]} Qxc2 {[%clk 00:09:39]} {[%emt 00:00:02]} 40.
Qxf7 {[%clk 00:04:07]} {[%emt 00:00:23]} Qg6 {[%clk 00:09:14]} {[%emt
00:00:31]} 41. Qf8+ {[%clk 00:04:05]} {[%emt 00:00:06]} Kh5 {[%clk 00:09:07]}
{[%emt 00:00:13]} 42. Qh8 {[%clk 00:04:08]} {[%emt 00:00:01]} Kg4 {[%clk
00:09:11]} 43. Qf6 {[%clk 00:03:28]} {[%emt 00:00:46]} Qe4 {[%clk 00:08:53]}
{[%emt 00:00:23]} 44. e6 {[%clk 00:03:09]} {[%emt 00:00:24]} Qd5+ {[%clk
00:08:56]} {[%emt 00:00:02]} 45. Kb4 {[%clk 00:03:13]} {[%emt 00:00:02]} Qd6+
{[%clk 00:08:57]} {[%emt 00:00:03]} 46. Kc3 {[%clk 00:03:13]} {[%emt 00:00:05]}
f3 {[%clk 00:08:58]} {[%emt 00:00:05]} 47. Qf7 {[%clk 00:02:36]} {[%emt
00:00:41]} c5 {[%clk 00:09:02]} {[%emt 00:00:01]} 48. dxc5 {[%clk 00:02:30]}
{[%emt 00:00:12]} Qd3+ {[%clk 00:09:06]} 49. Kb4 {[%clk 00:02:28]} {[%emt
00:00:04]} Qb3+ {[%clk 00:09:09]} {[%emt 00:00:05]} 50. Ka5 {[%clk 00:02:32]}
Qa4# {[%clk 00:09:13]} 0-1



[ePGN "0.1;DGT LiveChess/2.2.6"]

[Event "MČR juniorů a juniorek v rapid šachu 2024"]
[Site "Hotel Fit Fun, Harrachov, Czech Republic"]
[Date "2024.09.21"]
[Round "2.17"]
[White "Ret Adam Josef"]
[Black "Sadil Antonin"]
[Result "1-0"]
[TimeControl "20+5"]
[WhiteFideId "384240"]
[BlackFideId "23735597"]
[WhiteElo "2038"]
[BlackElo "1784"]

1. c4 {[%clk 00:20:08]} {[%emt 00:00:01]} Nf6 {[%clk 00:20:08]} {[%emt
00:00:02]} 2. g3 {[%clk 00:20:12]} {[%emt 00:00:01]} g6 {[%clk 00:20:04]}
{[%emt 00:00:09]} 3. Bg2 {[%clk 00:20:16]} d5 {[%clk 00:20:07]} {[%emt
00:00:03]} 4. cxd5 {[%clk 00:20:15]} {[%emt 00:00:07]} Nxd5 {[%clk 00:20:10]}
{[%emt 00:00:02]} 5. Nf3 {[%clk 00:20:00]} {[%emt 00:00:20]} Bg7 {[%clk
00:20:06]} {[%emt 00:00:09]} 6. O-O {[%clk 00:20:03]} {[%emt 00:00:03]} O-O
{[%clk 00:20:07]} {[%emt 00:00:03]} 7. d3 {[%clk 00:19:02]} {[%emt 00:01:06]}
c5 {[%clk 00:19:32]} {[%emt 00:00:40]} 8. Qc2 {[%clk 00:18:49]} {[%emt
00:00:18]} Na6 {[%clk 00:17:59]} {[%emt 00:01:38]} 9. Nc3 {[%clk 00:18:08]}
{[%emt 00:00:46]} Nab4 {[%clk 00:16:21]} {[%emt 00:01:43]} 10. Qd2 {[%clk
00:18:12]} {[%emt 00:00:02]} Nxc3 {[%clk 00:15:39]} {[%emt 00:00:47]} 11. bxc3
{[%clk 00:18:15]} {[%emt 00:00:02]} Nd5 {[%clk 00:14:37]} {[%emt 00:01:07]} 12.
Bb2 {[%clk 00:18:18]} {[%emt 00:00:02]} Bd7 {[%clk 00:14:01]} {[%emt 00:00:41]}
13. c4 {[%clk 00:17:55]} {[%emt 00:00:28]} Nb4 {[%clk 00:12:53]} {[%emt
00:01:14]} 14. Bxg7 {[%clk 00:17:27]} {[%emt 00:00:33]} Kxg7 {[%clk 00:12:56]}
{[%emt 00:00:03]} 15. d4 {[%clk 00:15:10]} {[%emt 00:02:22]} b6 {[%clk
00:11:19]} {[%emt 00:01:42]} 16. d5 {[%clk 00:14:13]} {[%emt 00:01:02]} Rb8
{[%clk 00:10:52]} {[%emt 00:00:32]} 17. e4 {[%clk 00:13:20]} {[%emt 00:00:58]}
Bg4 {[%clk 00:10:20]} {[%emt 00:00:36]} 18. Ne5 {[%clk 00:13:02]} {[%emt
00:00:24]} Bd7 {[%clk 00:09:00]} {[%emt 00:01:24]} 19. f4 {[%clk 00:12:09]}
{[%emt 00:00:59]} Ba4 {[%clk 00:07:53]} {[%emt 00:01:12]} 20. Rac1 {[%clk
00:07:55]} {[%emt 00:04:18]} Qd6 {[%clk 00:06:30]} {[%emt 00:01:29]} 21. Ng4
{[%clk 00:07:21]} {[%emt 00:00:39]} Nc6 {[%clk 00:05:50]} {[%emt 00:00:45]} 22.
f5 {[%clk 00:06:18]} {[%emt 00:01:08]} Nd4 {[%clk 00:04:24]} {[%emt 00:01:31]}
23. e5 {[%clk 00:06:06]} {[%emt 00:00:18]} Qd7 {[%clk 00:03:33]} {[%emt
00:00:55]} 24. f6+ {[%clk 00:04:12]} {[%emt 00:01:59]} exf6 {[%clk 00:03:05]}
{[%emt 00:00:34]} 25. Qh6+ {[%clk 00:04:10]} {[%emt 00:00:06]} 1-0



[ePGN "0.1;DGT LiveChess/2.2.6"]

[Event "MČR juniorů a juniorek v rapid šachu 2024"]
[Site "Hotel Fit Fun, Harrachov, Czech Republic"]
[Date "2024.09.21"]
[Round "2.18"]
[White "Pressler Tobias"]
[Black "Musil Tomas"]
[Result "1-0"]
[TimeControl "20+5"]
[WhiteFideId "23715359"]
[BlackFideId "23762888"]
[WhiteElo "1992"]
[BlackElo "1519"]

1. e4 {[%clk 00:20:08]} {[%emt 00:00:01]} e6 {[%clk 00:20:02]} {[%emt
00:00:09]} 2. d4 {[%clk 00:19:53]} {[%emt 00:00:19]} d5 {[%clk 00:20:06]} 3.
Nd2 {[%clk 00:19:46]} {[%emt 00:00:12]} c5 {[%clk 00:20:06]} {[%emt 00:00:05]}
4. Ngf3 {[%clk 00:19:25]} {[%emt 00:00:26]} Nc6 {[%clk 00:20:05]} {[%emt
00:00:06]} 5. c3 {[%clk 00:18:52]} {[%emt 00:00:38]} Bd7 {[%clk 00:19:47]}
{[%emt 00:00:23]} 6. Bd3 {[%clk 00:18:35]} {[%emt 00:00:23]} Nge7 {[%clk
00:17:34]} {[%emt 00:02:16]} 7. O-O {[%clk 00:18:35]} {[%emt 00:00:05]} cxd4
{[%clk 00:17:33]} {[%emt 00:00:07]} 8. cxd4 {[%clk 00:18:38]} {[%emt 00:00:03]}
Ng6 {[%clk 00:17:03]} {[%emt 00:00:34]} 9. e5 {[%clk 00:17:46]} {[%emt
00:00:57]} f6 {[%clk 00:16:23]} {[%emt 00:00:45]} 10. exf6 {[%clk 00:16:42]}
{[%emt 00:01:09]} Qxf6 {[%clk 00:16:14]} {[%emt 00:00:13]} 11. Nb3 {[%clk
00:16:45]} {[%emt 00:00:03]} Bd6 {[%clk 00:15:06]} {[%emt 00:01:13]} 12. Bg5
{[%clk 00:16:43]} {[%emt 00:00:07]} Qf7 {[%clk 00:14:53]} {[%emt 00:00:18]} 13.
Rc1 {[%clk 00:16:09]} {[%emt 00:00:40]} O-O {[%clk 00:14:42]} {[%emt 00:00:15]}
14. Nc5 {[%clk 00:15:40]} {[%emt 00:00:35]} Bxc5 {[%clk 00:11:44]} {[%emt
00:03:03]} 15. Rxc5 {[%clk 00:15:34]} {[%emt 00:00:11]} Nf4 {[%clk 00:10:04]}
{[%emt 00:01:44]} 16. Bb1 {[%clk 00:13:24]} {[%emt 00:02:15]} Rae8 {[%clk
00:06:49]} {[%emt 00:03:21]} 17. Qc2 {[%clk 00:13:16]} {[%emt 00:00:13]} g6
{[%clk 00:04:54]} {[%emt 00:02:00]} 18. Ne5 {[%clk 00:06:38]} {[%emt 00:06:43]}
Nxe5 {[%clk 00:03:10]} {[%emt 00:01:49]} 19. dxe5 {[%clk 00:06:41]} {[%emt
00:00:03]} Nxg2 {[%clk 00:02:34]} {[%emt 00:00:40]} 20. Bh6 {[%clk 00:04:24]}
{[%emt 00:02:22]} Nh4 {[%clk 00:01:38]} {[%emt 00:01:02]} 21. f4 {[%clk
00:03:30]} {[%emt 00:00:58]} Nf5 {[%clk 00:01:07]} {[%emt 00:00:36]} 22. Bxf8
{[%clk 00:03:32]} {[%emt 00:00:03]} Ne3 {[%clk 00:01:04]} {[%emt 00:00:07]} 23.
Qf2 {[%clk 00:03:24]} {[%emt 00:00:13]} Nxf1 {[%clk 00:01:03]} {[%emt
00:00:07]} 24. Bh6 {[%clk 00:03:24]} {[%emt 00:00:06]} Qe7 {[%clk 00:00:44]}
{[%emt 00:00:24]} 25. Bg5 {[%clk 00:03:08]} {[%emt 00:00:21]} Qf8 {[%clk
00:00:40]} {[%emt 00:00:08]} 26. Rc7 {[%clk 00:02:59]} {[%emt 00:00:13]} Bb5
{[%clk 00:00:28]} {[%emt 00:00:18]} 27. Bf6 {[%clk 00:02:59]} {[%emt 00:00:05]}
1-0



[ePGN "0.1;DGT LiveChess/2.2.6"]

[Event "MČR juniorů a juniorek v rapid šachu 2024"]
[Site "Hotel Fit Fun, Harrachov, Czech Republic"]
[Date "2024.09.21"]
[Round "2.19"]
[White "Nespora Tatana"]
[Black "Bezdek Tomas"]
[Result "0-1"]
[TimeControl "20+5"]
[WhiteFideId "392286"]
[BlackFideId "23733551"]
[WhiteElo "1697"]
[BlackElo "1973"]

1. e4 {[%clk 00:20:09]} {[%emt 00:00:01]} e6 {[%clk 00:20:09]} {[%emt
00:00:01]} 2. Nf3 {[%clk 00:20:11]} {[%emt 00:00:02]} d5 {[%clk 00:20:13]}
{[%emt 00:00:01]} 3. e5 {[%clk 00:20:12]} {[%emt 00:00:04]} c5 {[%clk
00:20:17]} {[%emt 00:00:01]} 4. b4 {[%clk 00:20:16]} {[%emt 00:00:02]} cxb4
{[%clk 00:20:13]} {[%emt 00:00:09]} 5. d4 {[%clk 00:20:20]} {[%emt 00:00:01]}
b6 {[%clk 00:19:55]} {[%emt 00:00:23]} 6. a3 {[%clk 00:20:22]} {[%emt
00:00:03]} a5 {[%clk 00:19:26]} {[%emt 00:00:34]} 7. axb4 {[%clk 00:20:04]}
{[%emt 00:00:22]} Bxb4+ {[%clk 00:19:29]} {[%emt 00:00:03]} 8. c3 {[%clk
00:20:08]} {[%emt 00:00:01]} Be7 {[%clk 00:19:12]} {[%emt 00:00:21]} 9. Bd3
{[%clk 00:20:10]} {[%emt 00:00:03]} Ba6 {[%clk 00:19:16]} {[%emt 00:00:01]} 10.
O-O {[%clk 00:19:35]} {[%emt 00:00:41]} Bxd3 {[%clk 00:19:07]} {[%emt
00:00:14]} 11. Qxd3 {[%clk 00:19:38]} {[%emt 00:00:02]} Nd7 {[%clk 00:18:56]}
{[%emt 00:00:15]} 12. Ba3 {[%clk 00:19:39]} {[%emt 00:00:04]} h5 {[%clk
00:16:53]} {[%emt 00:02:07]} 13. h4 {[%clk 00:19:06]} {[%emt 00:00:39]} Nh6
{[%clk 00:15:41]} {[%emt 00:01:17]} 14. Ng5 {[%clk 00:17:47]} {[%emt 00:01:23]}
Bxg5 {[%clk 00:14:38]} {[%emt 00:01:09]} 15. hxg5 {[%clk 00:17:50]} {[%emt
00:00:02]} Qxg5 {[%clk 00:14:42]} 16. Bd6 {[%clk 00:17:53]} {[%emt 00:00:02]}
Nf5 {[%clk 00:14:23]} {[%emt 00:00:24]} 17. Na3 {[%clk 00:17:24]} {[%emt
00:00:34]} Nxd6 {[%clk 00:13:13]} {[%emt 00:01:15]} 18. exd6 {[%clk 00:17:28]}
{[%emt 00:00:02]} h4 {[%clk 00:12:08]} {[%emt 00:01:10]} 19. Qh3 {[%clk
00:16:51]} {[%emt 00:00:41]} Qf4 {[%clk 00:11:15]} {[%emt 00:00:59]} 20. Nb5
{[%clk 00:16:20]} {[%emt 00:00:36]} O-O {[%clk 00:10:18]} {[%emt 00:01:02]} 21.
g3 {[%clk 00:15:47]} {[%emt 00:00:38]} hxg3 {[%clk 00:09:33]} {[%emt 00:00:50]}
22. fxg3 {[%clk 00:15:50]} {[%emt 00:00:02]} Qe3+ {[%clk 00:09:37]} 23. Rf2
{[%clk 00:15:14]} {[%emt 00:00:41]} Nf6 {[%clk 00:09:09]} {[%emt 00:00:34]} 24.
Raa2 {[%clk 00:12:52]} {[%emt 00:02:27]} Ne4 {[%clk 00:08:14]} {[%emt
00:01:00]} 25. Rae2 {[%clk 00:12:33]} {[%emt 00:00:24]} Qxg3+ {[%clk 00:08:06]}
{[%emt 00:00:13]} 26. Qxg3 {[%clk 00:12:36]} {[%emt 00:00:01]} Nxg3 {[%clk
00:08:10]} {[%emt 00:00:01]} 27. Re3 {[%clk 00:12:40]} {[%emt 00:00:02]} Ne4
{[%clk 00:07:43]} {[%emt 00:00:32]} 28. Rb2 {[%clk 00:12:28]} {[%emt 00:00:16]}
Rfd8 {[%clk 00:07:16]} {[%emt 00:00:33]} 29. Nc7 {[%clk 00:12:17]} {[%emt
00:00:16]} Rac8 {[%clk 00:06:20]} {[%emt 00:01:01]} 30. Rxb6 {[%clk 00:12:00]}
{[%emt 00:00:22]} Rxd6 {[%clk 00:06:20]} {[%emt 00:00:04]} 31. Rb7 {[%clk
00:11:56]} {[%emt 00:00:09]} Rd7 {[%clk 00:06:01]} {[%emt 00:00:25]} 0-1



[ePGN "0.1;DGT LiveChess/2.2.6"]